[Event "Early-Titled-Tuesday-Blitz-October-10-2023"]
[Site "Chess.com"]
[Date "2023.10.10"]
[Round "3"]
[White "CFN_Good_Evening"]
[Black "chesselephant"]
[Result "0-1"]
[WhiteElo "1627"]
[BlackElo "2525"]
[TimeControl "180+1"]
[EndTime "8:26:34 PDT"]
[Termination "chesselephant won by checkmate"]

1. d3 {[%clk 0:03:00.9]} 1... e5 {[%clk 0:02:56.7]} 2. Nc3 {[%clk 0:02:59.9]}
2... Nc6 {[%clk 0:02:56.7]} 3. e4 {[%clk 0:02:59.9]} 3... Bc5 {[%clk 0:02:55.9]}
4. g3 {[%clk 0:02:59.8]} 4... Nge7 {[%clk 0:02:55.8]} 5. Bg2 {[%clk 0:03:00.3]}
5... O-O {[%clk 0:02:56.2]} 6. Nge2 {[%clk 0:03:00.6]} 6... d6 {[%clk
0:02:56.7]} 7. a3 {[%clk 0:02:59.6]} 7... f5 {[%clk 0:02:56.8]} 8. exf5 {[%clk
0:02:52.4]} 8... Bxf5 {[%clk 0:02:54.5]} 9. O-O {[%clk 0:02:50.8]} 9... Qd7
{[%clk 0:02:52.8]} 10. b4 {[%clk 0:02:50.1]} 10... Bb6 {[%clk 0:02:53]} 11. Be3
{[%clk 0:02:43.2]} 11... Bh3 {[%clk 0:02:47.9]} 12. Qd2 {[%clk 0:02:36.7]} 12...
Bxg2 {[%clk 0:02:45.8]} 13. Kxg2 {[%clk 0:02:37.6]} 13... Nf5 {[%clk 0:02:39.2]}
14. Bxb6 {[%clk 0:02:36.4]} 14... axb6 {[%clk 0:02:38.1]} 15. Nd5 {[%clk
0:02:35.4]} 15... Qf7 {[%clk 0:02:30.4]} 16. c4 {[%clk 0:02:33]} 16... Nfd4
{[%clk 0:02:20.1]} 17. Nxd4 {[%clk 0:02:24.4]} 17... Nxd4 {[%clk 0:02:20.3]} 18.
f4 {[%clk 0:02:24.8]} 18... Nb3 {[%clk 0:02:19.2]} 19. Qc3 {[%clk 0:02:07.8]}
19... Nxa1 {[%clk 0:02:19.4]} 20. Qxa1 {[%clk 0:02:08.7]} 20... exf4 {[%clk
0:02:15.2]} 21. Rxf4 {[%clk 0:02:07.2]} 21... Qd7 {[%clk 0:02:11.5]} 22. Rh4
{[%clk 0:01:31.9]} 22... Rae8 {[%clk 0:02:03.6]} 23. Qd1 {[%clk 0:01:32.1]}
23... Re5 {[%clk 0:01:33.6]} 24. Rg4 {[%clk 0:01:27.2]} 24... Ref5 {[%clk
0:01:25.9]} 25. Nf4 {[%clk 0:01:22]} 25... Qc6+ {[%clk 0:01:17.3]} 26. Kh3
{[%clk 0:01:19.3]} 26... Qd7 {[%clk 0:01:03.5]} 27. Qf3 {[%clk 0:01:17.5]} 27...
h5 {[%clk 0:00:53.7]} 28. Kg2 {[%clk 0:00:58.6]} 28... hxg4 {[%clk 0:00:52.1]}
29. Qxg4 {[%clk 0:00:59.5]} 29... Qf7 {[%clk 0:00:49.2]} 30. Ng6 {[%clk
0:00:59]} 30... Rf2+ {[%clk 0:00:46.6]} 31. Kg1 {[%clk 0:00:56.5]} 31... Rg2+
{[%clk 0:00:42.8]} 32. Kxg2 {[%clk 0:00:57.4]} 32... Qf1# {[%clk 0:00:43]} 0-1

[Event "Early-Titled-Tuesday-Blitz-October-10-2023"]
[Site "Chess.com"]
[Date "2023.10.10"]
[Round "3"]
[White "AleksandrAleksikov"]
[Black "abc_xyz4744"]
[Result "1-0"]
[WhiteElo "2219"]
[BlackElo "2384"]
[TimeControl "180+1"]
[EndTime "8:26:34 PDT"]
[Termination "AleksandrAleksikov won by resignation"]

1. e4 {[%clk 0:03:00.9]} 1... c5 {[%clk 0:02:57.7]} 2. Nf3 {[%clk 0:03:00.5]}
2... g6 {[%clk 0:02:57.9]} 3. c3 {[%clk 0:02:59.5]} 3... Bg7 {[%clk 0:02:49.7]}
4. d3 {[%clk 0:02:57.7]} 4... e6 {[%clk 0:02:47.1]} 5. Be3 {[%clk 0:02:56.3]}
5... d6 {[%clk 0:02:40.6]} 6. Nbd2 {[%clk 0:02:55.6]} 6... Ne7 {[%clk
0:02:40.4]} 7. d4 {[%clk 0:02:54]} 7... b6 {[%clk 0:02:38.8]} 8. Bb5+ {[%clk
0:02:47.3]} 8... Bd7 {[%clk 0:02:38.3]} 9. Bd3 {[%clk 0:02:46.9]} 9... Bc6
{[%clk 0:02:35.3]} 10. O-O {[%clk 0:02:44.5]} 10... O-O {[%clk 0:02:34.6]} 11.
Re1 {[%clk 0:02:44]} 11... Nd7 {[%clk 0:02:34.1]} 12. Qe2 {[%clk 0:02:42.8]}
12... d5 {[%clk 0:02:30.5]} 13. dxc5 {[%clk 0:02:31]} 13... Nxc5 {[%clk
0:02:29.2]} 14. exd5 {[%clk 0:02:28.2]} 14... Nxd5 {[%clk 0:02:26.5]} 15. Bxc5
{[%clk 0:02:26]} 15... bxc5 {[%clk 0:01:58.4]} 16. g3 {[%clk 0:02:00.5]} 16...
Rb8 {[%clk 0:01:51.3]} 17. Nc4 {[%clk 0:01:46.3]} 17... Qf6 {[%clk 0:01:20.7]}
18. Nfe5 {[%clk 0:01:41.2]} 18... Ba8 {[%clk 0:01:18.1]} 19. Nd7 {[%clk
0:01:37]} 19... Qg5 {[%clk 0:01:10.2]} 20. Nxf8 {[%clk 0:01:29.9]} 20... Kxf8
{[%clk 0:00:45.8]} 21. Be4 {[%clk 0:01:26.1]} 21... Nf4 {[%clk 0:00:15.8]} 22.
Qe3 {[%clk 0:01:23.4]} 22... Bxe4 {[%clk 0:00:15.8]} 23. Qxe4 {[%clk 0:01:22.3]}
23... Nh3+ {[%clk 0:00:15.8]} 24. Kg2 {[%clk 0:01:19.7]} 24... Rxb2 {[%clk
0:00:11.8]} 25. Nxb2 {[%clk 0:01:16.8]} 1-0

[Event "Early-Titled-Tuesday-Blitz-October-10-2023"]
[Site "Chess.com"]
[Date "2023.10.10"]
[Round "3"]
[White "DanielTitichoca"]
[Black "Zheenbekov86"]
[Result "1-0"]
[WhiteElo "2629"]
[BlackElo "2450"]
[TimeControl "180+1"]
[EndTime "8:26:37 PDT"]
[Termination "DanielTitichoca won by resignation"]

1. e4 {[%clk 0:03:00.9]} 1... e5 {[%clk 0:02:58.4]} 2. Nf3 {[%clk 0:03:01.2]}
2... Nc6 {[%clk 0:02:58.3]} 3. Bb5 {[%clk 0:03:01.7]} 3... a6 {[%clk 0:02:58]}
4. Ba4 {[%clk 0:03:01.3]} 4... Nf6 {[%clk 0:02:57.8]} 5. O-O {[%clk 0:03:01.9]}
5... Be7 {[%clk 0:02:57.4]} 6. Nc3 {[%clk 0:03:00.4]} 6... b5 {[%clk 0:02:57.2]}
7. Bb3 {[%clk 0:03:00.5]} 7... O-O {[%clk 0:02:56.8]} 8. d3 {[%clk 0:03:00.8]}
8... d6 {[%clk 0:02:56.6]} 9. a4 {[%clk 0:02:58.9]} 9... b4 {[%clk 0:02:55.2]}
10. Nd5 {[%clk 0:02:59.4]} 10... Na5 {[%clk 0:02:53.5]} 11. Ba2 {[%clk
0:02:58.2]} 11... c5 {[%clk 0:02:51.8]} 12. Nxf6+ {[%clk 0:02:49]} 12... Bxf6
{[%clk 0:02:51.5]} 13. Nd2 {[%clk 0:02:40.9]} 13... Be6 {[%clk 0:02:48.2]} 14.
Nc4 {[%clk 0:02:39.4]} 14... Rb8 {[%clk 0:02:44.6]} 15. Be3 {[%clk 0:02:17.5]}
15... b3 {[%clk 0:02:38.1]} 16. cxb3 {[%clk 0:02:10.5]} 16... Nc6 {[%clk
0:02:37.2]} 17. b4 {[%clk 0:01:52.8]} 17... Nxb4 {[%clk 0:02:34.5]} 18. Bb3
{[%clk 0:01:53.4]} 18... g6 {[%clk 0:02:32.5]} 19. a5 {[%clk 0:01:50]} 19... Bg7
{[%clk 0:02:29.4]} 20. Nb6 {[%clk 0:01:50]} 20... Qe8 {[%clk 0:02:18.6]} 21. Bc4
{[%clk 0:01:40.5]} 21... Qe7 {[%clk 0:02:14.7]} 22. Qb3 {[%clk 0:01:33.8]} 22...
Rfe8 {[%clk 0:02:14]} 23. Qa4 {[%clk 0:01:32.1]} 23... f5 {[%clk 0:02:09.1]} 24.
f3 {[%clk 0:01:25.1]} 24... f4 {[%clk 0:02:06.6]} 25. Bd2 {[%clk 0:01:23.5]}
25... g5 {[%clk 0:01:36.7]} 26. Bxb4 {[%clk 0:01:14.8]} 26... cxb4 {[%clk
0:01:35.5]} 27. Qxb4 {[%clk 0:01:14.5]} 27... h5 {[%clk 0:01:31.5]} 28. Qb3
{[%clk 0:00:58.5]} 28... Qf7 {[%clk 0:01:25.5]} 29. Rac1 {[%clk 0:00:53.7]}
29... Kh7 {[%clk 0:01:21.3]} 30. Bxe6 {[%clk 0:00:45.4]} 30... Rxe6 {[%clk
0:01:20.6]} 31. Rc6 {[%clk 0:00:45.9]} 31... Qf6 {[%clk 0:01:16.7]} 32. Qd5
{[%clk 0:00:42.5]} 32... g4 {[%clk 0:01:14.1]} 33. Nd7 {[%clk 0:00:41.9]} 1-0

[Event "Early-Titled-Tuesday-Blitz-October-10-2023"]
[Site "Chess.com"]
[Date "2023.10.10"]
[Round "3"]
[White "lrestevez"]
[Black "Kopytkin"]
[Result "1-0"]
[WhiteElo "2198"]
[BlackElo "2382"]
[TimeControl "180+1"]
[EndTime "8:26:37 PDT"]
[Termination "lrestevez won by resignation"]

1. e4 {[%clk 0:03:00.9]} 1... Nf6 {[%clk 0:02:58.2]} 2. e5 {[%clk 0:03:00.7]}
2... Nd5 {[%clk 0:02:58]} 3. Nc3 {[%clk 0:03:01.6]} 3... Nxc3 {[%clk 0:02:56.9]}
4. dxc3 {[%clk 0:03:02.5]} 4... d5 {[%clk 0:02:57.2]} 5. Bd3 {[%clk 0:03:02.1]}
5... c5 {[%clk 0:02:56.7]} 6. Nf3 {[%clk 0:03:02.1]} 6... Nc6 {[%clk 0:02:56.8]}
7. O-O {[%clk 0:03:01.9]} 7... Bg4 {[%clk 0:02:43.7]} 8. h3 {[%clk 0:03:01.7]}
8... Bxf3 {[%clk 0:02:39.4]} 9. Qxf3 {[%clk 0:03:01.3]} 9... Nxe5 {[%clk
0:02:39.7]} 10. Bb5+ {[%clk 0:03:01.4]} 10... Nc6 {[%clk 0:02:40]} 11. Bf4
{[%clk 0:02:52.2]} 11... a6 {[%clk 0:02:36]} 12. Bd3 {[%clk 0:02:48.6]} 12... g6
{[%clk 0:02:30.3]} 13. Rfe1 {[%clk 0:02:44.8]} 13... Bg7 {[%clk 0:02:30.3]} 14.
Rad1 {[%clk 0:02:39.1]} 14... O-O {[%clk 0:02:29.7]} 15. Bf1 {[%clk 0:02:30.9]}
15... e5 {[%clk 0:02:09.9]} 16. Rxd5 {[%clk 0:02:26.1]} 16... Qc7 {[%clk
0:01:50]} 17. Bh2 {[%clk 0:02:19.6]} 17... b6 {[%clk 0:01:45]} 18. Red1 {[%clk
0:02:19.1]} 18... Rad8 {[%clk 0:01:42]} 19. Bxa6 {[%clk 0:02:12.6]} 19... Rxd5
{[%clk 0:01:41.4]} 20. Rxd5 {[%clk 0:02:12]} 20... Rd8 {[%clk 0:01:35.6]} 21.
Bc4 {[%clk 0:02:10.9]} 21... Rxd5 {[%clk 0:01:24.6]} 22. Bxd5 {[%clk 0:02:01.4]}
22... Nd8 {[%clk 0:01:25.5]} 23. c4 {[%clk 0:01:58.2]} 23... Nc6 {[%clk
0:01:26.4]} 24. Bxc6 {[%clk 0:01:57.7]} 24... Kh8 {[%clk 0:01:27.3]} 25. Bd5
{[%clk 0:01:56.5]} 25... f5 {[%clk 0:01:24.3]} 26. Qa3 {[%clk 0:01:51.3]} 26...
Qd8 {[%clk 0:01:10.8]} 27. Qa8 {[%clk 0:01:48.3]} 27... Qxa8 {[%clk 0:01:10.6]}
28. Bxa8 {[%clk 0:01:48.6]} 28... Kg8 {[%clk 0:01:06]} 29. Kf1 {[%clk
0:01:47.6]} 29... Kf7 {[%clk 0:01:06.2]} 30. Ke2 {[%clk 0:01:43.8]} 30... f4
{[%clk 0:01:03.3]} 31. f3 {[%clk 0:01:42.6]} 31... g5 {[%clk 0:01:00.8]} 32. Bg1
{[%clk 0:01:42.5]} 32... Ke6 {[%clk 0:00:59.5]} 33. Bf2 {[%clk 0:01:42.7]} 33...
h5 {[%clk 0:00:55.1]} 34. a4 {[%clk 0:01:42.7]} 34... Bf8 {[%clk 0:00:52.4]} 35.
Be4 {[%clk 0:01:42.7]} 35... Kd7 {[%clk 0:00:51.5]} 36. Be1 {[%clk 0:01:43]}
36... Bd6 {[%clk 0:00:50.1]} 37. a5 {[%clk 0:01:43.3]} 37... bxa5 {[%clk
0:00:49.3]} 38. Bxa5 {[%clk 0:01:43.2]} 38... Kc8 {[%clk 0:00:44.2]} 39. Bg6
{[%clk 0:01:41.8]} 39... h4 {[%clk 0:00:42.9]} 40. c3 {[%clk 0:01:39.8]} 40...
Kd7 {[%clk 0:00:42.2]} 41. b4 {[%clk 0:01:39.9]} 41... Kc8 {[%clk 0:00:42.1]}
42. Be4 {[%clk 0:01:38.1]} 42... Be7 {[%clk 0:00:37.7]} 43. bxc5 {[%clk
0:01:38.2]} 43... Bxc5 {[%clk 0:00:37.3]} 44. Bb4 {[%clk 0:01:38.6]} 44... Bb6
{[%clk 0:00:28.4]} 45. Be7 {[%clk 0:01:36]} 45... Bd8 {[%clk 0:00:28.6]} 46.
Bxd8 {[%clk 0:01:33.4]} 1-0

[Event "Early-Titled-Tuesday-Blitz-October-10-2023"]
[Site "Chess.com"]
[Date "2023.10.10"]
[Round "3"]
[White "Sunny_Star"]
[Black "Irishchessman16"]
[Result "0-1"]
[WhiteElo "2085"]
[BlackElo "2457"]
[TimeControl "180+1"]
[EndTime "8:26:40 PDT"]
[Termination "Irishchessman16 won on time"]

1. f4 {[%clk 0:02:56.5]} 1... d5 {[%clk 0:02:54.3]} 2. Nf3 {[%clk 0:02:49.5]}
2... c6 {[%clk 0:02:46]} 3. g3 {[%clk 0:02:43.5]} 3... Bg4 {[%clk 0:02:44.5]} 4.
Bg2 {[%clk 0:02:43]} 4... Bxf3 {[%clk 0:02:44.2]} 5. Bxf3 {[%clk 0:02:42.6]}
5... Qb6 {[%clk 0:02:44.2]} 6. d4 {[%clk 0:02:37.6]} 6... e6 {[%clk 0:02:40.6]}
7. O-O {[%clk 0:02:35.8]} 7... c5 {[%clk 0:02:40.8]} 8. e3 {[%clk 0:02:35.3]}
8... Nc6 {[%clk 0:02:41.4]} 9. c3 {[%clk 0:02:32.4]} 9... Nh6 {[%clk 0:02:40.9]}
10. Nd2 {[%clk 0:02:18]} 10... Nf5 {[%clk 0:02:40.1]} 11. Qe2 {[%clk 0:02:11.6]}
11... cxd4 {[%clk 0:02:13.4]} 12. cxd4 {[%clk 0:02:05.2]} 12... Nfxd4 {[%clk
0:02:11.1]} 13. exd4 {[%clk 0:01:10.3]} 13... Nxd4 {[%clk 0:02:10.1]} 14. Qf2
{[%clk 0:01:07.6]} 14... Nxf3+ {[%clk 0:02:07.5]} 15. Kg2 {[%clk 0:00:47.4]}
15... Qxf2+ {[%clk 0:02:02.9]} 16. Rxf2 {[%clk 0:00:46.6]} 16... Nd4 {[%clk
0:01:55.2]} 17. Nf3 {[%clk 0:00:41]} 17... Nxf3 {[%clk 0:01:49]} 18. Rxf3 {[%clk
0:00:36.4]} 18... Rc8 {[%clk 0:01:49.2]} 19. Be3 {[%clk 0:00:35.5]} 19... b6
{[%clk 0:01:44.9]} 20. Bd4 {[%clk 0:00:29.6]} 20... f6 {[%clk 0:01:41.4]} 21.
Re3 {[%clk 0:00:23.6]} 21... Kf7 {[%clk 0:01:38]} 22. Rae1 {[%clk 0:00:21.7]}
22... Rc6 {[%clk 0:01:36.6]} 23. a3 {[%clk 0:00:15.3]} 23... Bc5 {[%clk
0:01:32.4]} 24. Bxc5 {[%clk 0:00:04.1]} 24... bxc5 {[%clk 0:01:33.3]} 25. f5
{[%clk 0:00:03.8]} 25... e5 {[%clk 0:01:31.9]} 26. Rb3 {[%clk 0:00:04.2]} 26...
Rc7 {[%clk 0:01:31.1]} 27. Rd1 {[%clk 0:00:03.5]} 27... Rd8 {[%clk 0:01:28.4]}
28. Rbd3 {[%clk 0:00:02.8]} 28... d4 {[%clk 0:01:25.5]} 0-1

[Event "Early-Titled-Tuesday-Blitz-October-10-2023"]
[Site "Chess.com"]
[Date "2023.10.10"]
[Round "3"]
[White "Juicy_Fork"]
[Black "YouJustFoundYourGodfather"]
[Result "1-0"]
[WhiteElo "2474"]
[BlackElo "2616"]
[TimeControl "180+1"]
[EndTime "8:26:49 PDT"]
[Termination "Juicy_Fork won by checkmate"]

1. e4 {[%clk 0:03:00.9]} 1... c5 {[%clk 0:02:48.1]} 2. Nf3 {[%clk 0:03:00.6]}
2... g6 {[%clk 0:02:48.4]} 3. d4 {[%clk 0:02:59.3]} 3... Bg7 {[%clk 0:02:48.6]}
4. Nc3 {[%clk 0:02:59.3]} 4... cxd4 {[%clk 0:02:46.4]} 5. Nxd4 {[%clk
0:03:00.2]} 5... Nc6 {[%clk 0:02:46.4]} 6. Be3 {[%clk 0:03:00]} 6... Nf6 {[%clk
0:02:46.3]} 7. Bc4 {[%clk 0:02:59.8]} 7... O-O {[%clk 0:02:45.4]} 8. Bb3 {[%clk
0:02:59.1]} 8... a5 {[%clk 0:02:44.6]} 9. O-O {[%clk 0:02:57.3]} 9... d6 {[%clk
0:02:38.9]} 10. h3 {[%clk 0:02:56.8]} 10... Bd7 {[%clk 0:02:38.4]} 11. Re1
{[%clk 0:02:54.9]} 11... a4 {[%clk 0:02:30]} 12. Nxa4 {[%clk 0:02:53.7]} 12...
Nxd4 {[%clk 0:02:29.2]} 13. Qxd4 {[%clk 0:02:49.8]} 13... Bc6 {[%clk 0:02:10.5]}
14. Qb4 {[%clk 0:02:25.7]} 14... Ra6 {[%clk 0:00:51.4]} 15. Rad1 {[%clk
0:02:04.4]} 15... Nxe4 {[%clk 0:00:25.7]} 16. Bb6 {[%clk 0:02:03.7]} 16... Qd7
{[%clk 0:00:25.8]} 17. Rxe4 {[%clk 0:02:00.5]} 17... Bxe4 {[%clk 0:00:26.7]} 18.
Qxe4 {[%clk 0:02:00.8]} 18... Qb5 {[%clk 0:00:07.8]} 19. Be3 {[%clk 0:01:56.2]}
19... Rfa8 {[%clk 0:00:03]} 20. Nc3 {[%clk 0:01:56.3]} 20... Qd7 {[%clk
0:00:03.6]} 21. Nd5 {[%clk 0:01:52.8]} 21... e6 {[%clk 0:00:03.7]} 22. Nb6
{[%clk 0:01:52.6]} 22... Rxb6 {[%clk 0:00:04.2]} 23. Bxb6 {[%clk 0:01:53.5]}
23... d5 {[%clk 0:00:04.7]} 24. Qd3 {[%clk 0:01:46.8]} 24... Bxb2 {[%clk
0:00:04.4]} 25. Bd4 {[%clk 0:01:47]} 25... Bxd4 {[%clk 0:00:03]} 26. Qxd4 {[%clk
0:01:47.9]} 26... Qc6 {[%clk 0:00:03.8]} 27. c4 {[%clk 0:01:47.7]} 27... dxc4
{[%clk 0:00:02.9]} 28. Qxc4 {[%clk 0:01:48.6]} 28... Qb6 {[%clk 0:00:03.4]} 29.
Rd7 {[%clk 0:01:45.8]} 29... Kg7 {[%clk 0:00:02.1]} 30. Qd4+ {[%clk 0:01:45]}
30... Qxd4 {[%clk 0:00:02.6]} 31. Rxd4 {[%clk 0:01:45.9]} 31... Ra5 {[%clk
0:00:02.7]} 32. Rd7 {[%clk 0:01:46]} 32... Rb5 {[%clk 0:00:03]} 33. Bxe6 {[%clk
0:01:45.4]} 33... Rb1+ {[%clk 0:00:03.5]} 34. Kh2 {[%clk 0:01:45.5]} 34... Kf6
{[%clk 0:00:04.4]} 35. Bxf7 {[%clk 0:01:46]} 35... Rb2 {[%clk 0:00:05.2]} 36.
Kg3 {[%clk 0:01:44.3]} 36... b5 {[%clk 0:00:05.1]} 37. Bg8 {[%clk 0:01:43.7]}
37... h5 {[%clk 0:00:05.4]} 38. Rf7+ {[%clk 0:01:43.3]} 38... Kg5 {[%clk
0:00:05.6]} 39. h4+ {[%clk 0:01:42.1]} 39... Kh6 {[%clk 0:00:05.7]} 40. Rh7#
{[%clk 0:01:43]} 1-0

[Event "Early-Titled-Tuesday-Blitz-October-10-2023"]
[Site "Chess.com"]
[Date "2023.10.10"]
[Round "3"]
[White "GMKrikor"]
[Black "combidharma"]
[Result "0-1"]
[WhiteElo "2852"]
[BlackElo "2662"]
[TimeControl "180+1"]
[EndTime "8:26:50 PDT"]
[Termination "combidharma won by resignation"]

1. Nf3 {[%clk 0:03:00.9]} 1... Nf6 {[%clk 0:02:53.9]} 2. c4 {[%clk 0:03:01.3]}
2... c6 {[%clk 0:02:53.4]} 3. Nc3 {[%clk 0:03:00.6]} 3... d5 {[%clk 0:02:54.3]}
4. d4 {[%clk 0:03:01.3]} 4... e6 {[%clk 0:02:53.9]} 5. cxd5 {[%clk 0:03:01.2]}
5... exd5 {[%clk 0:02:53.8]} 6. Bf4 {[%clk 0:03:01.6]} 6... Bd6 {[%clk
0:02:51.6]} 7. Bxd6 {[%clk 0:03:01.7]} 7... Qxd6 {[%clk 0:02:52.5]} 8. e3 {[%clk
0:03:02.3]} 8... Bf5 {[%clk 0:02:53.1]} 9. Nh4 {[%clk 0:03:02.1]} 9... Bg6
{[%clk 0:02:52.6]} 10. h3 {[%clk 0:02:51.7]} 10... O-O {[%clk 0:02:50.7]} 11.
Nxg6 {[%clk 0:02:51.5]} 11... hxg6 {[%clk 0:02:45.1]} 12. Bd3 {[%clk 0:02:51.7]}
12... Nbd7 {[%clk 0:02:45.6]} 13. O-O {[%clk 0:02:51.8]} 13... Rfe8 {[%clk
0:02:32.8]} 14. Qc2 {[%clk 0:02:50.4]} 14... g5 {[%clk 0:02:24.8]} 15. Rae1
{[%clk 0:02:35.1]} 15... g4 {[%clk 0:02:20.5]} 16. Bf5 {[%clk 0:02:35.3]} 16...
gxh3 {[%clk 0:02:18.2]} 17. Bxh3 {[%clk 0:02:36.2]} 17... Nb6 {[%clk 0:02:13.4]}
18. b3 {[%clk 0:02:33.8]} 18... Re7 {[%clk 0:02:13]} 19. Ne2 {[%clk 0:02:26.9]}
19... Ne4 {[%clk 0:02:07.7]} 20. g3 {[%clk 0:02:20.3]} 20... g6 {[%clk
0:02:02.8]} 21. Bg2 {[%clk 0:02:19.6]} 21... Kg7 {[%clk 0:02:02]} 22. Nf4 {[%clk
0:02:13.4]} 22... Rh8 {[%clk 0:01:56.8]} 23. Bxe4 {[%clk 0:01:32.5]} 23... dxe4
{[%clk 0:01:57.5]} 24. Qc5 {[%clk 0:01:26.9]} 24... Qf6 {[%clk 0:01:55.9]} 25.
f3 {[%clk 0:00:52.9]} 25... g5 {[%clk 0:01:40.4]} 26. fxe4 {[%clk 0:00:41.4]}
26... gxf4 {[%clk 0:01:40.3]} 27. Rxf4 {[%clk 0:00:39.7]} 27... Qg6 {[%clk
0:01:37.4]} 28. Re2 {[%clk 0:00:19.6]} 28... Rxe4 {[%clk 0:01:32.6]} 29. Rf3
{[%clk 0:00:19.1]} 29... Qh5 {[%clk 0:01:15.6]} 30. Qxh5 {[%clk 0:00:18.3]}
30... Rxh5 {[%clk 0:01:16.5]} 31. Kg2 {[%clk 0:00:17.5]} 31... Nd5 {[%clk
0:01:15.5]} 0-1

[Event "Early-Titled-Tuesday-Blitz-October-10-2023"]
[Site "Chess.com"]
[Date "2023.10.10"]
[Round "3"]
[White "SchachmattTV_Tobi"]
[Black "c63_amg"]
[Result "1-0"]
[WhiteElo "2599"]
[BlackElo "2807"]
[TimeControl "180+1"]
[EndTime "8:26:54 PDT"]
[Termination "SchachmattTV_Tobi won by resignation"]

1. d4 {[%clk 0:02:55.8]} 1... Nf6 {[%clk 0:02:58.3]} 2. c4 {[%clk 0:02:54.7]}
2... g6 {[%clk 0:02:57.8]} 3. Nc3 {[%clk 0:02:54.5]} 3... d5 {[%clk 0:02:57.8]}
4. Nf3 {[%clk 0:02:53.8]} 4... Bg7 {[%clk 0:02:57.7]} 5. h4 {[%clk 0:02:53.7]}
5... c5 {[%clk 0:02:47.8]} 6. cxd5 {[%clk 0:02:43.8]} 6... Nxd5 {[%clk
0:02:44.2]} 7. h5 {[%clk 0:02:44]} 7... cxd4 {[%clk 0:02:30.8]} 8. Nxd4 {[%clk
0:02:38.9]} 8... Nxc3 {[%clk 0:02:27.4]} 9. bxc3 {[%clk 0:02:39.8]} 9... e5
{[%clk 0:02:25.9]} 10. Nb5 {[%clk 0:02:34.3]} 10... Qxd1+ {[%clk 0:02:14.7]} 11.
Kxd1 {[%clk 0:02:35.2]} 11... Na6 {[%clk 0:02:09.4]} 12. Nd6+ {[%clk 0:02:21.3]}
12... Ke7 {[%clk 0:02:09.5]} 13. Ba3 {[%clk 0:02:07.5]} 13... Rd8 {[%clk
0:02:05.4]} 14. Ke1 {[%clk 0:01:58.7]} 14... Ke6 {[%clk 0:01:54.5]} 15. hxg6
{[%clk 0:01:55.3]} 15... hxg6 {[%clk 0:01:53.2]} 16. Rh7 {[%clk 0:01:55]} 16...
Bf8 {[%clk 0:01:48.7]} 17. Nxf7 {[%clk 0:01:54]} 17... Bxa3 {[%clk 0:01:32.8]}
18. Nxd8+ {[%clk 0:01:53.9]} 18... Kf6 {[%clk 0:01:30.8]} 19. Rd1 {[%clk
0:01:35.8]} 19... Bf5 {[%clk 0:01:08.9]} 20. e3 {[%clk 0:01:19.1]} 20... Nc5
{[%clk 0:00:50.3]} 21. f4 {[%clk 0:01:13.6]} 21... exf4 {[%clk 0:00:46.9]} 22.
exf4 {[%clk 0:01:14.5]} 22... g5 {[%clk 0:00:36]} 23. Rf7+ {[%clk 0:00:59.2]}
23... Kg6 {[%clk 0:00:36.4]} 24. g4 {[%clk 0:00:46.9]} 24... Bxg4 {[%clk
0:00:33.4]} 25. Rd6+ {[%clk 0:00:46.8]} 25... Ne6 {[%clk 0:00:30.2]} 26. Bd3+
{[%clk 0:00:42.9]} 1-0

[Event "Early-Titled-Tuesday-Blitz-October-10-2023"]
[Site "Chess.com"]
[Date "2023.10.10"]
[Round "3"]
[White "DeTimmerman"]
[Black "Oleksandr_Bortnyk"]
[Result "0-1"]
[WhiteElo "2720"]
[BlackElo "3055"]
[TimeControl "180+1"]
[EndTime "8:26:55 PDT"]
[Termination "Oleksandr_Bortnyk won by resignation"]

1. b4 {[%clk 0:02:58.8]} 1... e5 {[%clk 0:02:57.4]} 2. Bb2 {[%clk 0:02:59.1]}
2... f6 {[%clk 0:02:57.7]} 3. e4 {[%clk 0:02:59.1]} 3... c6 {[%clk 0:02:52.6]}
4. a3 {[%clk 0:02:57.6]} 4... d5 {[%clk 0:02:53]} 5. exd5 {[%clk 0:02:57.3]}
5... cxd5 {[%clk 0:02:50.4]} 6. Nf3 {[%clk 0:02:58.2]} 6... Bd6 {[%clk
0:02:48.9]} 7. Be2 {[%clk 0:02:58.4]} 7... Ne7 {[%clk 0:02:48.9]} 8. O-O {[%clk
0:02:53.8]} 8... O-O {[%clk 0:02:48]} 9. d4 {[%clk 0:02:54.1]} 9... e4 {[%clk
0:02:48.3]} 10. Nfd2 {[%clk 0:02:54.7]} 10... Qc7 {[%clk 0:02:36.9]} 11. h3
{[%clk 0:02:46.4]} 11... f5 {[%clk 0:02:32.9]} 12. c4 {[%clk 0:02:46.6]} 12...
Be6 {[%clk 0:02:33.2]} 13. Nc3 {[%clk 0:02:37.7]} 13... Nbc6 {[%clk 0:02:19.3]}
14. Nb5 {[%clk 0:02:36.9]} 14... Bh2+ {[%clk 0:02:19]} 15. Kh1 {[%clk
0:02:36.9]} 15... Qb8 {[%clk 0:02:19.7]} 16. g3 {[%clk 0:02:26.9]} 16... Bxg3
{[%clk 0:02:18.9]} 17. fxg3 {[%clk 0:02:27.8]} 17... a6 {[%clk 0:02:07.9]} 18.
Nc3 {[%clk 0:02:13.1]} 18... Qxg3 {[%clk 0:02:07.3]} 19. Nf3 {[%clk 0:01:12.1]}
19... exf3 {[%clk 0:01:58.8]} 20. Rxf3 {[%clk 0:01:13]} 20... Qh4 {[%clk
0:01:59.3]} 21. b5 {[%clk 0:00:51.2]} 21... Nxd4 {[%clk 0:01:55]} 22. Rd3 {[%clk
0:00:39.5]} 22... f4 {[%clk 0:01:42.1]} 23. Bg4 {[%clk 0:00:32]} 23... Bxg4
{[%clk 0:01:27.2]} 24. Qxg4 {[%clk 0:00:32.9]} 24... Qxg4 {[%clk 0:01:27]} 25.
hxg4 {[%clk 0:00:33.1]} 25... Nc2 {[%clk 0:01:27.8]} 26. Rc1 {[%clk 0:00:30.8]}
26... Ne3 {[%clk 0:01:21]} 27. Nxd5 {[%clk 0:00:30.1]} 27... N7xd5 {[%clk
0:01:19.9]} 28. cxd5 {[%clk 0:00:31]} 28... axb5 {[%clk 0:01:09]} 29. d6 {[%clk
0:00:31.3]} 29... Nc4 {[%clk 0:01:07.9]} 30. Rc2 {[%clk 0:00:29.2]} 30... Rad8
{[%clk 0:01:03.8]} 31. d7 {[%clk 0:00:28.8]} 31... Rf7 {[%clk 0:01:02.8]} 32. a4
{[%clk 0:00:26.6]} 32... Rfxd7 {[%clk 0:00:59.9]} 33. Rxd7 {[%clk 0:00:27.5]}
33... Rxd7 {[%clk 0:01:00.8]} 34. axb5 {[%clk 0:00:27.9]} 34... Rd1+ {[%clk
0:00:59.7]} 35. Kg2 {[%clk 0:00:27.6]} 35... Ne3+ {[%clk 0:00:59.9]} 0-1